{"text_format":"1","workbook":"xlsx","n_sheets":7,"sheets":["Anlatım","Gelişim ve İzleme Formu","Gelişim Raporu","Ayarlamalar","Eylül","DönemSonu","Bilissel"],"not_rendered":{"charts":0,"images":12,"macros":1,"external_links":0,"defined_names":0,"comments":0,"pivot_tables":0},"unopened":[],"bounds":{"document_bytes":16777216,"sheet_cells":100000,"rows_first":2000,"rows_last":500,"rows_between":2000,"halvings":0,"cell_chars":16384,"cell_head_chars":4096},"cells_cut":0,"cells_raw":0,"read":"whole","date_system":"1900"}

{"sheet":"Anlatım","index":0,"n_rows":129,"n_cols":13,"rows_kept":129,"cut":false,"hidden":false,"merged":[[105,0,106,16],[89,0,90,16],[0,0,2,16],[72,0,75,6],[72,8,75,16],[5,0,6,16],[63,0,63,6],[63,8,63,16],[84,0,85,16],[86,0,87,16],[26,0,27,16],[76,0,77,16],[82,0,83,16],[29,0,30,16],[80,0,81,16],[78,0,79,16],[126,0,127,5],[114,0,115,5],[116,0,117,5],[118,0,119,5],[120,0,121,5],[122,0,123,5],[108,0,109,16],[110,1,110,4],[111,1,111,4],[112,0,113,5],[124,0,125,5],[128,11,129,16],[110,12,110,15],[111,12,111,15],[112,11,113,16],[114,11,115,16],[116,11,117,16],[118,11,119,16],[120,11,121,16],[122,11,123,16],[124,11,125,16],[126,11,127,16],[31,0,34,3],[35,0,44,4],[45,0,62,2],[45,6,62,11],[3,0,4,16],[7,0,8,16],[9,0,10,16],[11,0,12,3],[24,0,25,16],[16,0,17,16],[13,0,14,3],[18,0,19,16],[20,0,21,16],[22,0,23,16],[11,9,12,12],[13,9,14,12],[99,0,100,16],[101,0,102,16],[103,0,104,16],[91,0,92,16],[93,0,94,16],[95,0,96,16],[97,0,98,16]]}
["LÜTFEN BU SAYFANIN TAMAMINI DİKKATLİCE OKUYUNUZ"]
[]
[]
["Bu, \"Gelişim ve İzleme Formu Oluşturma Robotu\"muzun ücretli versiyonudur."]
[]
["Bu Robot Telefona, Tablete ve Apple cihazlara uygun olmayıp Bilgisayarda, Excel programında çalışmaktadır. Lütfen programımızı bilgisayarda kullanınız."]
[]
["Full versiyonu için gelişmeleri aşağıdaki linke tıklayarak Whatsapp grubumuzdan takip edebilirsiniz."]
[]
["Lütfen Programımızın Ücretli Versiyonunu Paylaşmayınız. Emeğimize Saygı Gösterdiğiniz İçin Teşekkür Ederiz."]
[]
["Plan ve Programlarımızı Görmek",null,null,null,null,null,null,null,null,"planim.com.tr"]
[]
["ve bize ulaşmak için:",null,null,null,null,null,null,null,null,"okul öncesi planları"]
[]
[]
["NOTLAR"]
[]
["Hem Gelişim İzleme Formları hem de Gelişim Raporları güncellenen 2024 Şubat Okul Öncesi Programındaki Kazanım ve Göstergelerine uygun bir şekilde doldurulmuştur. 2024-2025 Eğitim Öğretim yılında Maarif Modeli programına göre güncellenecektir."]
[]
["Hem Gelişim İzleme Form-larıu hem de Gelişim Raporları aylara göre artan zorlukta hazırlanmıştır (Her ay bir önceki aya göre daha zor kazanımlar otomatik olarak yazılır)"]
[]
["Programın sadece \"Ayarlamalar\", \"Gelişim ve İzleme Formu\" ve \"Gelişim Raporu\" sekmelerinde değişiklik yapabilirsiniz. (Eğer bir değişiklik yapmazsanız program tamamen otomatik olarak çalışacaktır)"]
[]
["Programın ayarlarının bozulmaması için sayfanın alt tarafındaki \"Ayarlamalar\" sekmesi ve \"Gelişim ve İzleme Formu\" ve \"Gelişim Raporları\"ndaki İsim Soyisim vb. Yeşil kutular hariç tüm sekmelerdeki yazılar kilitlenmiştir ve değiştirilemez."]
[]
["Gelişim ve İzleme Formu ile Gelişim Raporlarında sadece olumlu cümleler kullanılmıştır. \"Yapamaz\", \"Yapamıyor\", \"Beceremiyor\" ile biten hiçbir cümle kullanılmamıştır. Ayrıca Programdaki \"Yapar\", \"Söyler\" şeklindeki geniş zaman cümleleri \"Yapabiliyor\", \"Söyleyebiliyor\" şeklinde değiştirilmiştir."]
[]
[]
["NASIL ÇALIŞIR? (LÜTFEN TAMAMINI OKUYUNUZ)"]
[]
["1: Bu uyarı çıkarsa \"Düzenlemeyi Etkinleştir\" butonuna tıklayınız."]
[]
[]
[]
["2: Güvenlik Riski uyarısı çıkarsa Excel'i kapatıp 3. ve 4. maddeleri uygulayınız."]
[]
[]
[]
[]
[]
[]
[]
[]
[]
["3: İndirdiğiniz programımıza sağ tıklayıp özellikler'i seçiniz.",null,null,null,null,null,"4: açılan pencerede \"Engellemeyi Kaldır\"a tıklayıp sonra da \"Tamam\"a basınız. Programı tekrar açtığınızda 5. maddeden devam ediniz."]
[]
[]
[]
[]
[]
[]
[]
[]
[]
[]
[]
[]
[]
[]
[]
[]
[]
["Excel'in yeni versiyonlarında çıkan uyarı:",null,null,null,null,null,null,null,"Excel'in yeni versiyonunda çıkan uyarılar:"]
[]
[]
[]
[]
[]
[]
[]
[]
["1-A: Excel versiyonunuz yeniyse Programı ilk açtığınızda sayfanın üst tarafında \"Makrolar devre dışı bırakıldı\" uyarısı verirebilir                        \"İçeriği Etkinleştir\" butonuna basınız.",null,null,null,null,null,null,null,"1-B: Excel versiyonunuz eskiyse Programı ilk açtığınızda sayfanın üst tarafında \"Makrolar devre dışı bırakıldı\" uyarısı verirebilir önce \"Seçenekler\"e tıklayıp, açılan sayfada \"İçeriği Etkinleştir\"i seçerek \"Tamam\"a butonuna basınız."]
[]
[]
[]
["2: Sayfanın en altındaki \"Ayarlamalar\" sekmesini seçerek o sekmede bulunduğunuz ayı seçiniz."]
[]
["3: İhtiyacınıza göre sayfanın en altındaki \"Gelişim ve İzleme Formu\", \"Birinci Dönem Gelişim Raporu\" ya da \"Yıl Sonu Gelişim Raporu\" sekmesini seçip \"Çocuğun Adı Soyadı\", \"Öğretmenin Adı Soyadı\" ve \"Yaş Grubu\" kısımlarını doldurunuz. Çocuğun adını yazdığınız anda Robotumuz paragrafları çocuğun ismine göre kişiselleştirecektir."]
[]
["4: Robotun oluşturduğu içeriği okuyunuz. İçeriği beğenirseniz \"CTRL+P\" tuşlarıyla direkt olarak çıktı alabilir ya da içeriği beğenmezseniz Ayarlamalar sekmesindeki \"Başla\" tuşu ile sayfadaki tüm içeriği yenileyebilirsiniz."]
[]
["5:  Ayarlamalar sekmesindeki \"Başla\" tuşuna her basışınızda tüm sayfadaki içerik sil baştan yazılır. Her çocuk için ayar yapmadan yeni ve otomatik bir form hazırlamak için  Ayarlamalar sekmesindeki \"Başla\" tuşuna basmanız yeterlidir."]
[]
["6: İsterseniz Gelişim ve İzleme Formları için sayfanın alt tarafındaki\"Ayarlamalar\" sekmesinden hangi rakamda olduğunuz, ayın değerleri gibi ufak ayarlamalar yapabilirsiniz. (Ayarlama yapmazsanız otomatik seçilecektir)"]
[]
["Not: \"Gelişim ve İzleme Formu\"ndaki \"Notlar\" kısmı ile \"Gelişim Raporları\"ndaki \"Görüş ve Öneriler\" kısımlarını kendi cümlelerinizle doldurmalısınız."]
[]
[]
["NASIL KULLANIRIM (AYARLAMALAR ve DÜZENLEMELER YAPMA ile ÇIKTI ALMA)"]
[]
["1: Sayfanın alt tarafındaki sekmelerden Ayarlamalar'a tıklayıp açınız."]
[]
["2: Çocuğun Adı ve Çocuğun Soyadı kısımlarındaki yeşil kutuları boş bırakmayınız, kesin olarak yazınız"]
[]
["3: Kullanılan Gözlem Kayıt Araçları ve Değerler kısımlarındaki yeşil kutuları isterseniz doldurabilirsiniz. (Doldurmazsanız robotumuz otomatik doldurur.)"]
[]
["4: İşlediğiniz rakamı, rengi, şekli isterseniz seçebilirsiniz. (Seçmezseniz kavram sırasına uygun olarak robotumuz kendisi seçeer.)"]
[]
["5: Hangi ayın Gelişim ve İzleme Formu'nu dolduracaksanız ya da Hangi dönemin Gelişim Raporunu dolduracaksanız \"Ay ya da Dönem Seçiniz\" kısmından seçiniz."]
[]
["6: BAŞLA'ya basınız. (BAŞLA'ya bastığınızda \"Gelişim ve İzleme Formu\" ya da \"Gelişim Raporu\"nuz hazırlanacaktır. (Bilgisayarınızın hızına göre 2-30 saniye sürebilir.)"]
[]
["7: Öğretmen Adı, Yaş Grubu, Tarih gibi bilgileri düzenleyip gerekiyorsa öğrencinize göre gelişim alanlarında da düzenlemeleri de yaptıktan sonra"]
[]
["8: CTRL ve P tuşlarına birlikte basıarak çıktı alabilirsiniz."]
[]
[]
["E-Okul'a Gelişim Raporunu Kopyalamak İçin 2 Yöntem"]
[]
[null,"1. Yöntem",null,null,null,null,null,null,null,null,null,null,"2. Yöntem"]
[null,"Sürükle-Bırak Yöntemi",null,null,null,null,null,null,null,null,null,null,"Eklenti Yöntemi"]
["1: Bir adet word belgesi açıyoruz.",null,null,null,null,null,null,null,null,null,null,"1: Chrome ya da Opera Programını Açıyoruz"]
[]
["2: Excel'deki gelişim alanlarındaki paragrafları Word'e kopyalıyoruz",null,null,null,null,null,null,null,null,null,null,"2: Buraya tıklayıp Programın sayfasına giriyoruz"]
[]
[" Yeni paragraf için F9'a basınız",null,null,null,null,null,null,null,null,null,null,"3: Operaya Ekle / Chrome'a Ekle'ye basıyoruz"]
[]
["4: E-Okul'u açıyoruz.",null,null,null,null,null,null,null,null,null,null,"4: E-Okul'a girip Gelişim Raporu bölümünü açıyoruz"]
[]
["5: Hem E-Okul'u hem Word belgesini açıp yan yana yerleştiriyoruz.",null,null,null,null,null,null,null,null,null,null,"5: Gelişim Raporu açıkken Adres çubuğunun yanındaki yapboz işaretine tıklıyoruz"]
[]
["6: Hem E-Okul penceresini hem de Word belgesini küçültüp yan yana yerleştiriyoruz.",null,null,null,null,null,null,null,null,null,null,"6: Açılan sayfada Supreme Copy'in yanındaki pin işaretine basıyoruz"]
[]
["7: Word belgesinden gelişim alanına uygun bir paragrafı seçiyoruz.",null,null,null,null,null,null,null,null,null,null,"7: Adres çubuğunun yanında bir fare işareti gözükecek ona tıklıyoruz"]
[]
["8: Word belgesinden sürükleyerek E-Okul'un içine bırakıyoruz.",null,null,null,null,null,null,null,null,null,null,"8: Enable extension on this website butonuna basıyoruz"]
[]
[null,null,null,null,null,null,null,null,null,null,null,"9: Artık kopyala/yapıştır yapabilirsiniz"]

{"sheet":"Gelişim ve İzleme Formu","index":1,"n_rows":51,"n_cols":11,"rows_kept":51,"cut":false,"hidden":false,"merged":[[38,1,38,10],[39,1,46,10],[47,1,47,3],[47,4,47,10],[50,1,52,10],[30,1,37,10],[5,1,5,2],[5,3,5,5],[5,6,5,7],[5,8,5,10],[7,1,7,4],[8,1,9,10],[11,1,11,10],[12,1,19,10],[20,1,20,10],[21,1,28,10],[29,1,29,10],[1,1,1,10],[2,1,2,10],[4,1,4,2],[4,3,4,5],[4,6,4,7],[4,8,4,10]]}
[null,null,null,null,null,null,null,null,null,null,"EK-1"]
[null,"Gelişim ve Öğrenme İzleme Formu"]
[null,"Eylül"]
[]
[null,"Çocuğun Adı:",null,"İsmi Yazın",null,null,"Çocuğun Soyadı:",null,"Soyismi Yazın"]
[null,"Öğretmen:",null,"Mustafa ERİŞKİN",null,null,"Yaş Grubu:",null,"48-60 Ay"]
[]
[null,"Kullanılan Gözlem Kayıt Araçları:"]
[null,"Anektod Kayırlar, Kontrol Listesi"]
[]
[]
[null,"Bilişsel Gelişim:"]
[null,"Etkinlik sırasında verilen yönergeleri hatırlayıp yönergelere uygun davranabiliyor. Farklı şekillerdeki nesneler arasındaki daire şekline sahip nesneleri ayırt edebiliyor. Bir durumu, bir süre sonra hatırlayıp, oluş sırasına göre tekrar anlatabiliyor. Ekim ayından itibaren daha fazla soru sorması için teşvik edilecektir. Bir poblem durumuyla karşılaştığında kendi çözümünü üretmeye çalışmada başarılı. Problem çözme becerisi desteklenecektir. İsmi Yazın ona gösterdiğim rakamların miktar gösteren bir sembol olduğunu bilebiliyor. Bir bütünü parçalarına bölebiliyor."]
[]
[]
[]
[]
[]
[]
[]
[null,"Dil Gelişimi:"]
[null,"İsmi Yazın bir yetişkinden kendisine kitap okumasını isteyebiliyor. Resim, şema, grafik, hikaye kitabı gibi görsel materyalleri inceleyip sorular sorabiliyor. Görsel materyallerle ilgili sorulara cevap verebilmesi için daha dikkatli incelemesi sağlanacaktır. Sınıfta yeni bir konuşma başlatabiliyor. Dinlediği hikayede ilk kez duyduğu kelimeleri fark edebiliyor. Ekim ayında bilmediği kelimelerin anlamlarını sormaya teşvik edilecektir. İsmi Yazın çevresindeki yazıları fark edip gösterebiliyor. Konuşmalarında cümlelerin öğelerinden bazılarını kullanabiliyor."]
[]
[]
[]
[]
[]
[]
[]
[null,"Fiziksel Gelişim ve Sağlık:"]
[null,"Nesneleri itebiliyor ve çekebiliyor. Yemekten önce, yemek sırasında ve yemekten sonraki temizlik kurallarına uyabiliyor. İyi - Kötü dokunuşları ayırt edebiliyor. İsmi Yazın kendisine atılan top, balon gibi büyük ama hafif nesneleri tutabiliyor. Farklı yön ve hızlarda koşabiliyor. Durum ve olayları hareketleri ile taklit edebiliyor."]
[]
[]
[]
[]
[]
[]
[]
[null,"Sosyal Duygusal Gelişim ve Değerler"]
[null,"Mustafa Kemal Atatürk ile ilgili etkinliklere katılmakta istekli davranıyor. Kuralların gerekliliğini biliyor ve açıklayabiliyor. Sınıf arkadaşlarıyla etkileşime girmede istekli davranabiliyor. Verilen görevi başarabileceğini söyleyip başarmak için elinden geleni yapabiliyor. Kendisinin ve başkalarının haklarını açıklayabiliyor. Çevresinde gördüğü rahatsız edici durumları açıklayabiliyor."]
[]
[]
[]
[]
[]
[]
[]
[null,"Ayın Değeri:",null,null,"Sabır, Saygı"]
[]
[null,"Notlar:"]
[null,"…........................................................................................................................................................................................................................................................................................................................................................................................................................................................................................................................................................................................................................................................."]

{"sheet":"Gelişim Raporu","index":2,"n_rows":20,"n_cols":11,"rows_kept":20,"cut":false,"hidden":false,"merged":[[15,1,15,10],[16,1,16,10],[9,1,9,10],[11,1,11,10],[12,1,12,10],[13,1,13,10],[14,1,14,10],[6,8,6,10],[7,1,7,2],[7,3,7,5],[7,6,7,7],[7,8,7,10],[19,1,19,10],[18,1,18,10],[1,1,1,10],[2,1,2,10],[4,1,4,2],[4,3,4,5],[4,6,4,7],[4,8,4,10],[10,1,10,10],[5,1,5,2],[5,3,5,5],[5,6,5,7],[5,8,5,10],[6,1,6,2],[6,3,6,5],[6,6,6,7]]}
[null,null,null,null,null,null,null,null,null,null,"EK-2"]
[null,"Gelişim Raporu"]
[null,"(Sene Sonu)"]
[]
[null,"Çocuğun Adı:",null,"İsmi Yazın",null,null,"Çocuğun Soyadı:",null,"Soyismi Yazın"]
[null,"Öğretmen:",null,"Mustafa ERİŞKİN",null,null,"Doğum Tarihi:",null,"2018-02-01"]
[null,"Okulun Adı:",null,"Karahayıt İlkokulu",null,null,"Cinsiyeti:",null,"Kız"]
[null,"Rapor Tarihi:",null,"2024-01-15",null,null,"Okula Başlama:",null,"2023-09-28"]
[]
[null,"Bilişsel Gelişim:"]
[null,"Oluşturulmuş bir grafiği inceleyerek, grafiğin sonuçlarını yorumlayabiliyor. Bir nesne grubundan belirtilen sayı kadar nesneyi çıkarabiliyor.. Sorulduğunda kendisiyle ilgili özellikleri söyleyebiliyor. Nesne ve sembollerle basit toplama işlemlerini yapabiliyor. Sınıfta üretilen bir tartışma konusu ile ilgili sorular sorabiliyor. Harita, kroki gibi mekanda konum bildiren araçları kullanabiliyor."]
[null,"Dil Gelişimi:"]
[null,"Bu alanı görebilmek için ücretli versiyonu satın almanız gerekmektedir."]
[null,"Fiziksel Gelişim ve Sağlık:"]
[null,"Bu alanı görebilmek için ücretli versiyonu satın almanız gerekmektedir."]
[null,"Sosyal Duygusal Gelişim ve Değerler"]
[null,"Bu alanı görebilmek için ücretli versiyonu satın almanız gerekmektedir."]
[]
[null,"Görüş ve Öneriler"]
[null,"Görüş ve öneriler kısmına, çocukların bireysel ilgi duydukları merkezleri, oyuncakları, oyunları ve çocukların bireysel yetenekleri ile tatile ve geleceklerine dair güzel dileklerinizi yazabilirsiniz."]

{"sheet":"Ayarlamalar","index":3,"n_rows":40,"n_cols":28,"rows_kept":40,"cut":false,"hidden":false,"merged":[[0,0,0,2],[2,0,2,2],[6,0,6,2],[4,0,4,2],[22,0,22,6],[24,0,24,6],[4,4,10,4],[26,0,26,6],[23,0,23,7],[25,0,25,7],[9,0,20,2],[4,6,6,6],[27,0,27,7],[29,0,29,7],[28,0,28,6],[30,0,30,7],[31,0,31,7],[34,6,34,7],[35,6,35,7],[36,6,36,7],[37,6,37,7],[33,6,33,7]]}
["Çocuğun Adı:",null,null,null,"Kullanılan Gözlem Kayıt Araçları:",null,"Değerler:",null,"Eylül",null," ",null,null,null,null,null,null,null,null,null,null,null,null,null,null,1,"daire","kırmızı"]
[null,null,null,null,null,null,null,null,"(Dönem Sonu)","Adalet"," ",null,null,null,null,null,null,null,null,null,null,null,null,null,null,2,"üçgen","mavi"]
["İsmi Yazın",null,null," ","Anektod Kayırlar, Kontrol Listesi"," ","Sabır, Saygı"," ",null,"Aile Bütünlüğü"," ",null,null,null,null,null,null,null,null,null,null,null,null,null,null,3,"kare","sarı"]
[null,null,null,null,null,null,null,null,null,"Çalışkanlık"," ",null,null,null,null,null,null,null,null,null,null,null,null,null,null,4,"dikdörtgen","turuncu"]
["Çocuğun Soyadı:",null,null,null,"Aşağıdaki Gözlem kayıt araçlarının rastgele ve otomatik olarak yazılmasını istemiyorsanız               yukarıdaki yeşil kutuya formun ait olduğu ay içerisinde kullandığınız gözlem kayıt araçlarını                                       aralarına virgül koyarak yazabilirsiniz.",null,"Değerler kısmına aşağıdaki değerlerin rastgele ve otomatik olarak yazılmasını istemiyorsanız yukarıdaki yeşil kutuya o ay işlediğiniz değerleri, aralarına  virgül koyarak yazabilirsiniz.",null,null,"Dostluk"," ",null,null,null,null,null,null,null,null,null,null,null,null,null,null,5,"elips","yeşil"]
[null,null,null,null,null,null,null,null,null,"Duyarlılık"," ",null,null,null,null,null,null,null,null,null,null,null,null,null,null,6,"küre","mor"]
["Soyismi Yazın",null,null,null,null,null,null,null,null,"Dürüstlük"," ",null,null,null,null,null,null,null,null,null,null,null,null,null,null,7,"küp","kahverengi"]
[null,null,null,null,null,null,"(Otomatik yazılması için boş bırakınız)",null,null,"Estetik"," ",null,null,null,null,null,null,null,null,null,null,null,null,null,null,8,"piramit","beyaz"]
[null,null,null,null,null,null,null,null,null,"Mahremiyet"," ",null,null,null,null,null,null,null,null,null,null,null,null,null,null,9,"silindir","pembe"]
["Çocuğun adını ve soyadını yeşil kutulara yazınız.",null,null,null,null,null,"Adalet",null,null,"Merhamet"," ",null,null,null,null,null,null,null,null,null,null,null,null,null,null,"Otomatik","Otomatik","siyah"]
[null,null,null,null,null,null,"Cömertlik",null,null,"Mütevazılık"," ",null,null,null,null,null,null,null,null,null,null,null,null,null,null,null,null,"gri"]
[null,null,null,null,"(Otomatik yazılması için boş bırakınız)",null,"Dostluk",null,null,"Özgürlük"," ",null,null,null,null,null,null,null,null,null,null,null,null,null,null,null,null,"Otomatik"]
[null,null,null,null,null,null,"Dürüstlük"," ",null,"Sabır"," "]
[null,null,null,null,"Fotoğraflar",null,"Merhabet"," ",null,"Sağlıklı Yaşam"," "]
[null,null,null,null,"Ürün İnceleme Formları",null,"Öz Denetim"," ",null,"Saygı"," "]
[null,null,null,null,"Anektod Kayıtlar",null,"Sabır"," ",null,"Sevgi"," "]
[null,null,null,null,"Kontrol Listesi",null,"Saygı"," ",null,"Sorumluluk"," "]
[null,null,null,null,"Derecelendirme Örneği",null,"Sevgi"," ",null,"Tasarruf"," "]
[null,null,null,null,"Ses Kayıtları",null,"Sorumluluk"," ",null,"Temizlik"," "]
[null,null,null,null,"Video Kayıtları",null,"Vatanseverlik"," ",null,"Vatanseverlik"," "]
[null,null,null,null,"Yapılan Etkinlikler",null,"Yardımseverlik"," ",null,"Yardımseverlik","  "]
[]
["Hangi Rakama kadar tanıyabiliyor? Yandaki yeşil kutuya tıklayıp seçiniz.",null,null,null,null,null,null,"Otomatik"]
[]
["Hangi rakama kadar yazabiliyor? (Rehber çizgiler yardımıyla) Yandaki yeşil kutuya tıklayıp seçiniz.",null,null,null,null,null,null,"Otomatik"]
[]
["Hangi şekle kadar öğrendiniz? Yandaki yeşil kutuya tıklayıp seçiniz. (Kitaplardaki sıraya göre)",null,null,null,null,null,null,"Otomatik"]
[]
["Hangi renge kadar öğrendiniz? Yandaki yeşil kutuya tıklayıp seçiniz. (Kitaplardaki sıraya göre)",null,null,null,null,null,null,"Otomatik"]
[]
["Yukarıdaki ayarlamaları yaptıktan sonra en son aşağıdaki yeşil kutudan"]
["Hangi aya ait Gelişim ve İzleme Formu ya da hangi döneme ait Gelişim Raporu hazırlanacağını seçip BAŞLA'ya basınız."]
[]
[null,null,null,null,"Ay ya da Dönem seçiniz:",null,"KULLANIM"]
[null,null,null,null,"(Dönem Sonu)",null,"1: İlk olarak yeşil kutulara çocuğun adını ve soyadını yazınız."]
[null,null,null,null,null,null,"2: Gelişim ve İzleme Formları için Yeşil kutuları doldurunuz."]
[null,null,null,null,null,null,"3: Gelişim Raporları için bir şey doldurmanıza gerek yok. Otomatiktir."]
[null,null,null,null,null,null,"4: Ardından Başla'nın üzerinden Ay ya da Dönem seçiniz."]
[null,null,null,null,"planim.com.tr"]
[null,null,null,null,"Okul Öncesi Planları"]

{"sheet":"Eylül","index":4,"n_rows":51,"n_cols":11,"rows_kept":51,"cut":false,"hidden":false,"merged":[[50,1,52,10],[11,1,11,10],[7,1,7,4],[8,1,9,10],[29,1,29,10],[30,1,37,10],[38,1,38,10],[39,1,46,10],[20,1,20,10],[21,1,28,10],[12,1,19,10],[5,1,5,2],[47,4,47,10],[47,1,47,3],[1,1,1,10],[2,1,2,10],[4,1,4,2],[4,3,4,5],[4,6,4,7],[4,8,4,10],[5,3,5,5],[5,6,5,7],[5,8,5,10]]}
[null,null,null,null,null,null,null,null,null,null,"EK-1"]
[null,"Gelişim ve Öğrenme İzleme Formu"]
[null,"Eylül"]
[]
[null,"Çocuğun Adı:",null,{"$f":"Ayarlamalar!A3","v":"İsmi Yazın"},null,null,"Çocuğun Soyadı:",null,{"$f":"Ayarlamalar!A7","v":"Soyismi Yazın"}]
[null,"Öğretmen:",null,"Mustafa ERİŞKİN",null,null,"Yaş Grubu:",null,"48-60 Ay"]
[]
[null,"Kullanılan Gözlem Kayıt Araçları:"]
[null,{"$f":"IF(Ayarlamalar!E3=\"\",K_BENZERSİZ(Ayarlamalar!E14:E21,5,\", \"),Ayarlamalar!E3)","v":"Anektod Kayırlar, Kontrol Listesi"}]
[]
[]
[null,"Bilişsel Gelişim:"]
[null,{"$f":"K_BENZERSİZ(Bilissel!A1:A19,6,\". \")&\".\"","v":"Olayları oluş sırasına göre sıralayabiliyor. Bu ay öğrendiğimiz kırmızı rengini tanıyabiliyor. İsmi Yazın ona gösterdiğim rakamların miktar gösteren bir sembol olduğunu bilebiliyor. İsmi Yazın merak ettiği konularda sorular sorup yaşından beklendiği şekilde kendi araştırmasını yapabiliyor. Kendi başına bir etkinliğe başlayıp etkinliği bitirene kadar devam edebiliyor. Verilen nesneyi inceleyip fiziksel özelliklerini tarif edebiliyor. Ekim ayında nesneleri çeşitli özelliklerine göre eşleştirme çalışmaları yapılacaktır."}]
[]
[]
[]
[]
[]
[]
[]
[null,"Dil Gelişimi:"]
[null,{"$f":"K_BENZERSİZ(#REF!,6,\". \")&\".\"","v":{"$error":"#VALUE!"}}]
[]
[]
[]
[]
[]
[]
[]
[null,"Fiziksel Gelişim ve Sağlık:"]
[null,{"$f":"K_BENZERSİZ(#REF!,6,\". \")&\".\"","v":{"$error":"#VALUE!"}}]
[]
[]
[]
[]
[]
[]
[]
[null,"Sosyal Duygusal Gelişim ve Değerler"]
[null,{"$f":"K_BENZERSİZ(#REF!,6,\". \")&\".\"","v":{"$error":"#VALUE!"}}]
[]
[]
[]
[]
[]
[]
[]
[null,"Ayın Değeri:",null,null,{"$f":"IF(Ayarlamalar!G3=\"\",K_BENZERSİZ(Ayarlamalar!G10:G21,2),Ayarlamalar!G3)","v":"Sabır, Saygı"}]
[]
[null,"Notlar:"]
[null,"…........................................................................................................................................................................................................................................................................................................................................................................................................................................................................................................................................................................................................................................................."]

{"sheet":"DönemSonu","index":5,"n_rows":22,"n_cols":11,"rows_kept":22,"cut":false,"hidden":false,"merged":[[4,6,4,7],[4,8,4,10],[7,6,7,7],[7,8,7,10],[17,1,17,10],[9,1,9,10],[10,1,10,10],[11,1,11,10],[12,1,12,10],[6,8,6,10],[13,1,13,10],[14,1,14,10],[15,1,15,10],[16,1,16,10],[18,1,18,10],[21,1,21,10],[20,1,20,10],[1,1,1,10],[2,1,2,10],[4,1,4,2],[4,3,4,5],[7,1,7,2],[7,3,7,5],[5,1,5,2],[5,3,5,5],[5,6,5,7],[5,8,5,10],[6,1,6,2],[6,3,6,5],[6,6,6,7]]}
[null,null,null,null,null,null,null,null,null,null,"EK-2"]
[null,"Gelişim Raporu"]
[null,"(Sene Sonu)"]
[]
[null,"Çocuğun Adı:",null,{"$f":"Ayarlamalar!A3","v":"İsmi Yazın"},null,null,"Çocuğun Soyadı:",null,{"$f":"Ayarlamalar!A7","v":"Soyismi Yazın"}]
[null,"Öğretmen:",null,"Mustafa ERİŞKİN",null,null,"Doğum Tarihi:",null,"2018-02-01"]
[null,"Okulun Adı:",null,"Karahayıt İlkokulu",null,null,"Cinsiyeti:",null,"Kız"]
[null,"Rapor Tarihi:",null,"2024-06-29",null,null,"Okula Başlama:",null,"2023-09-28"]
[]
[null,"Bilişsel Gelişim:"]
[null,{"$f":"K_BENZERSİZ(Bilissel!A210:A246,6,\". \")&\".\"","v":"Bir olayın olası nedenlerini ve sonuçlarını söyleyip aralarındaki neden-sonuç ilişkisini anlatabiliyor. Sene boyunca öğrendiğimiz zıt ve benzer kavramları biliyor. Sorulduğunda kendisiyle ilgili özellikleri söyleyebiliyor. Eksik bırakılan bir hikayeyi devam ettirebiliyor. Dikkat edilmesi gereken durumu fark edip dikkatini yoğun bir şekilde verebiliyor. Nesneleri kullanarak yaptığı toplama ya da çıkarma işleminin sonucunu söyleyebiliyor."}]
[null,"Dil Gelişimi:"]
[null,"Bu alanı görebilmek için ücretli versiyonu satın almanız gerekmektedir."]
[null,"Fiziksel Gelişim ve Sağlık:"]
[null,"Bu alanı görebilmek için ücretli versiyonu satın almanız gerekmektedir."]
[null,"Sosyal Duygusal Gelişim ve Değerler"]
[null,"Bu alanı görebilmek için ücretli versiyonu satın almanız gerekmektedir."]
[null,"Değerler:"]
[null,{"$f":"K_BENZERSİZ(#REF!,6,\". \")&\".\"","v":{"$error":"#VALUE!"}}]
[]
[null,"Görüş ve Öneriler"]
[null,"Görüş ve öneriler kısmına, çocukların bireysel ilgi duydukları merkezleri, oyuncakları, oyunları ve çocukların bireysel yetenekleri ile tatile ve geleceklerine dair güzel dileklerinizi yazabilirsiniz."]

{"sheet":"Bilissel","index":6,"n_rows":246,"n_cols":4,"rows_kept":246,"cut":false,"hidden":true,"merged":[]}
[{"$f":"IF(Ayarlamalar!H23=\"Otomatik\",CONCATENATE(\"Sınıfımızda şu ana kadar \",B1,\" rakamına kadar öğrendik ve \",Ayarlamalar!A3,\" öğrendiğimiz rakamları zorlanmadan tanıyabiliyor\"),CONCATENATE(\"Sınıfımızda şu ana kadar \",Ayarlamalar!H23,\" rakamına kadar öğrendik ve \",Ayarlamalar!A3,\" öğrendiğimiz rakamları zorlanmadan tanıyabiliyor\"))","v":"Sınıfımızda şu ana kadar 2 rakamına kadar öğrendik ve İsmi Yazın öğrendiğimiz rakamları zorlanmadan tanıyabiliyor"},{"$f":"RANDBETWEEN(1,2)","v":2},null,"Nesneleri kullanarak grafik oluşturabiliyor"]
["Nesne ve varlıkları adlarını sorup, öğrenip, söyleyebiliyor",null,null,"Nesneleri ya da varlıkları, sembollerle göstererek grafik oluşturabiliyor"]
["Verilen nesneyi inceleyip fiziksel özelliklerini tarif edebiliyor. Ekim ayında nesneleri çeşitli özelliklerine göre eşleştirme çalışmaları yapılacaktır",null,null,"Oluşturulmuş bir grafiği inceleyerek, grafiğin sonuçlarını yorumlayabiliyor"]
["Bir durumu, bir süre sonra hatırlayıp, oluş sırasına göre tekrar anlatabiliyor. Ekim ayından itibaren daha fazla soru sorması için teşvik edilecektir",null,null,"Zorlandığı bir etkinliği bir süre sonra tekrar denemekte istekli davranıyor"]
["Sınıfta, yapılan deneylerle ilgili tahminde bulunabiliyor. Daha akılcı tahminler yapabilmesi için Ekim ayında farklı deneyler yapmaya devam edilecektir",null,null,"Sınıfta üretilen bir tartışma konusu ile ilgili sorular sorabiliyor"]
[{"$f":"CONCATENATE(Ayarlamalar!A3,\" ona gösterdiğim rakamların miktar gösteren bir sembol olduğunu bilebiliyor\")","v":"İsmi Yazın ona gösterdiğim rakamların miktar gösteren bir sembol olduğunu bilebiliyor"},null,null,"Sınıfta üretilen bir tartışma konusu ile ilgili düşüncelerini ve bu düşüncelerin gerekçelerini açıklayabiliyor"]
["Farklı şekillerdeki nesneler arasındaki daire şekline sahip nesneleri ayırt edebiliyor",null,null,"Sınıfta üretilen bir tartışma konusundaki düşüncelerini diğer çocukların düşünceleriyle karşılaştırabiliyor"]
["Bir nesnenin parçası olan daha küçük nesneleri tanıyabiliyor fakat yerlerine yerleştirmekte desteğe ihtiyaç duyuyor",null,null,"Oluşturduğu hedefine yönelik karmaşık görevleri sıraya koyup bunları gerçekleştirebiliyor"]
["Bir bütünü parçalarına bölebiliyor",null,null,"Önündeki problemi, gerekli algoritmayı oluşturmak için inceleyebiliyor"]
["Olayları oluş sırasına göre sıralayabiliyor",null,null,"Amacına uygun algoritma oluşturabiliyor"]
["Eylül ayında öğrendiğimiz daire şeklini tanıyabiliyor ve daire şeklindeki nesneleri bulup gösterebiliyor",null,null,"Oluşturduğu algoritmayı test edip gerekiyorsa hatalarını düzeltme çabasına girebiliyor"]
["Etkinlik sırasında verilen yönergeleri hatırlayıp yönergelere uygun davranabiliyor",null,null,"Günlük yaşamdaki algoritmalara örnekler verebiliyor"]
["Kendi başına bir etkinliğe başlayıp etkinliği bitirene kadar devam edebiliyor",null,null,"İki, üç aşamalı basit kodlama kurallarını fark edip bunları tanımlaybiliyor"]
["Etkinlik sırasında zorlanırsa bir arkadaşından ya da öğretmeninden yardım isteyebiliyor",null,null,"Verilen kurallara göre kodlamayı oluşturabiliyor"]
["Karşılaştığı bir problem ya da zorluğu ifade edebiliyor",null,null,"Kodlama kullanarak basit problemleri çözebiliyor"]
["Bir poblem durumuyla karşılaştığında kendi çözümünü üretmeye çalışmada başarılı. Problem çözme becerisi desteklenecektir",null,null,"Kodlama problemine uygun olarak objeleri konumlandırabiliyor"]
[{"$f":"CONCATENATE(Ayarlamalar!A3,\" merak ettiği konularda sorular sorup yaşından beklendiği şekilde kendi araştırmasını yapabiliyor\")","v":"İsmi Yazın merak ettiği konularda sorular sorup yaşından beklendiği şekilde kendi araştırmasını yapabiliyor"},null,null,"Kodlama problemine uygun olarak kendi bedenini konumlandırabiliyor"]
[{"$f":"CONCATENATE(Ayarlamalar!A3,\", Mustafa Kemal Mustafa Kemal Atatürkün kişisel özelliklerinden öğrendiklerimizi hatırlayıp söyleyebiliyor\")","v":"İsmi Yazın, Mustafa Kemal Mustafa Kemal Atatürkün kişisel özelliklerinden öğrendiklerimizi hatırlayıp söyleyebiliyor"},null,null,"Verilen kodlama probleminde hata varsa bu hataları fark edip söyleyebiliyor, istenirse hatayı düzeltebiliyor"]
[{"$f":"IF(Ayarlamalar!H29=\"Otomatik\",CONCATENATE(\"Bu ay öğrendiğimiz \",B19,\" rengini tanıyabiliyor\"),CONCATENATE(\"Bu ay öğrendiğimiz \",Ayarlamalar!H29,\" rengini tanıyabiliyor\"))","v":"Bu ay öğrendiğimiz kırmızı rengini tanıyabiliyor"},"kırmızı",null,"Üst bilişsel bir görevi yerine getiren arkadaşına dikkat edip onu gözlemleyebiliyor"]
[null,null,null,"Üst bilişsel bir göreve ilişkin işlem basamaklarını açıklayabiliyor"]
[null,null,null,"Üst bilişsel bir görevi başarabilmek için kullandığı stratejilerini açıklayabiliyor"]
[null,null,null,"Üst bilişsel görevi hakkında açıklama ve yorumlar yapabiliyor"]
[]
[]
[]
[]
[]
[]
[]
[]
[]
[]
[]
[]
[]
[]
[]
[]
[]
[]
[]
[]
[]
[]
[]
[]
[]
[]
[]
[]
[]
[]
[]
[]
[]
[]
[]
[]
[]
[]
[]
[]
[]
[]
[]
[]
[]
[]
[]
[]
[]
[]
[]
[]
[]
[]
[]
[]
[]
[]
[]
[]
[]
[]
[]
[]
[]
[]
[]
[]
[]
[]
[]
[]
[]
[]
[]
[]
[]
[]
[]
[]
[]
[]
[]
[]
[]
[]
[]
[]
[]
[]
[]
[]
[]
[]
[]
[]
[]
[]
[]
[]
[]
[]
[]
[]
[]
[]
[]
[]
[]
[]
[]
[]
[]
[]
[]
[]
[]
[]
[]
[]
[]
[]
[]
[]
[]
[]
[]
[]
[]
[]
[]
[]
[]
[]
[]
[]
[]
[]
[]
[]
[]
[]
[]
[]
[]
[]
[]
[]
[]
[]
[]
[]
[]
[]
[]
[]
[]
[]
[]
[]
[]
[]
[]
[]
[]
[]
[]
[]
[]
[]
[]
[]
[]
[]
[]
[]
[]
[]
[]
[]
[]
[]
[]
[]
[]
[]
[]
["1 ile 20 arası rakamlarla nesneler arasında ilişki kurabiliyor"]
["Algoritma oluşturup, oluşturduğu algoritmayı test edebiliyor"]
[{"$f":"Bilissel!D10","v":"Amacına uygun algoritma oluşturabiliyor"}]
["Bir nesne grubundan belirtilen sayı kadar nesneyi çıkarabiliyor."]
["Bir olayın olası nedenlerini ve sonuçlarını söyleyip aralarındaki neden-sonuç ilişkisini anlatabiliyor"]
["Bir sayıdan önce ya da sonra gelen sayıyı söyleyebiliyor."]
["Dikkat edilmesi gereken durumu fark edip dikkatini yoğun bir şekilde verebiliyor"]
["Eksik bırakılan bir hikayeyi devam ettirebiliyor"]
["Etkinliklerde sorulan sorulara akılcı ve mantıklı cevaplar verebiliyor"]
["Grup halindeki nesnelerin bir bakışta hızlıca sayılarını söyleyebiliyor"]
["Harita, kroki gibi mekanda konum bildiren araçları kullanabiliyor"]
["Hedefine ulaşmak için önünde bulunan seçenekleri gözlemleyip, değerlendirip, doğru seçeneği tercih etmeye çalışıyor"]
[{"$f":"Bilissel!D13","v":"İki, üç aşamalı basit kodlama kurallarını fark edip bunları tanımlaybiliyor"}]
["Kavram , sayı , gruplandırma , eşleme gibi çalışmalarda oldukça dikkatli"]
[{"$f":"Bilissel!D15","v":"Kodlama kullanarak basit problemleri çözebiliyor"}]
[{"$f":"Bilissel!D16","v":"Kodlama problemine uygun olarak objeleri konumlandırabiliyor"}]
["Nesneleri eşleştirme, gruplama, sıralama gibi faaliyetlerde başarılı"]
[{"$f":"Bilissel!D1","v":"Nesneleri kullanarak grafik oluşturabiliyor"}]
[{"$f":"Bilissel!D2","v":"Nesneleri ya da varlıkları, sembollerle göstererek grafik oluşturabiliyor"}]
["Nesneleri kullanarak yaptığı toplama ya da çıkarma işleminin sonucunu söyleyebiliyor"]
["Nesneleri kullanarak yaptığı toplama ya da çıkarma işleminin sonucunu söyleyebiliyor"]
["Nesneleri çeşitli özelliklerine göre sınıflandırma ve sıralama işlemlerini yapabiliyor"]
["Nesne ve sembollerle basit toplama işlemlerini yapabiliyor"]
["Nesne ve sembollerle basit çıkarma işlemlerini yapabiliyor"]
[{"$f":"Bilissel!D3","v":"Oluşturulmuş bir grafiği inceleyerek, grafiğin sonuçlarını yorumlayabiliyor"}]
[{"$f":"Bilissel!D8","v":"Oluşturduğu hedefine yönelik karmaşık görevleri sıraya koyup bunları gerçekleştirebiliyor"}]
[{"$f":"Bilissel!D9","v":"Önündeki problemi, gerekli algoritmayı oluşturmak için inceleyebiliyor"}]
["Örüntü etkinliklerinde başarılı bir şekilde özgün örüntüler oluşturabiliyor"]
["Örüntü etkinliklerini tamamlamada başarılı"]
["Sene boyunca öğrendiğimiz renkleri tanıyabiliyor"]
["Sene boyunca öğrendiğimiz zıt ve benzer kavramları biliyor"]
[{"$f":"Bilissel!D5","v":"Sınıfta üretilen bir tartışma konusu ile ilgili sorular sorabiliyor"}]
[{"$f":"Bilissel!D6","v":"Sınıfta üretilen bir tartışma konusu ile ilgili düşüncelerini ve bu düşüncelerin gerekçelerini açıklayabiliyor"}]
["Sorulduğunda kendisiyle ilgili özellikleri söyleyebiliyor"]
[{"$f":"Bilissel!D18","v":"Verilen kodlama probleminde hata varsa bu hataları fark edip söyleyebiliyor, istenirse hatayı düzeltebiliyor"}]
["Yaşına uygun düzeyde bilişsel beceriye sahip"]
[{"$f":"Bilissel!D4","v":"Zorlandığı bir etkinliği bir süre sonra tekrar denemekte istekli davranıyor"}]